fUSD/lending_fUSD_20250611
["ID","MTS","AMOUNT","RATE_DAILY","PERIOD"]
[365450944,1749678670906,-1000.0,0.00019721,2]
[365450945,1749678670916,-500.0,0.00019721,2]
[365450946,1749678670925,-1000.0,0.00019721,2]
[365450947,1749678670935,-1000.0,0.00019721,2]
[365450948,1749678670945,-1000.0,0.00019721,2]
[365450949,1749678670954,-151.0,0.00019721,2]
[365450950,1749678670963,-151.0,0.00019721,2]
[365450951,1749678670972,-151.0,0.00019721,2]
[365450952,1749678670982,-151.0,0.00019721,2]
[365450953,1749678670992,-1680.0,0.00019735,2]
[365450954,1749678671002,-158.91123783,0.00019783,2]
[365450955,1749678671011,-600.0,0.000198,7]
[365450956,1749678671020,-833.29909032,0.000198,7]
[365450957,1749678671030,-3058.86184255,0.00019809,2]
[365450958,1749678671039,-22500.82424102,0.0001981,2]
[365450959,1749678671048,-150.0,0.00019821,2]
[365450960,1749678671058,-150.0,0.00019824,2]
[365450961,1749678671067,-150.0,0.00019831,2]
[365450962,1749678671076,-490.0,0.00019835,2]
[365450963,1749678671085,-552.65,0.00019835,2]
[365450964,1749678671095,-208.7,0.00019835,2]
[365450965,1749678671104,-490.0,0.00019835,2]
[365450966,1749678671113,-597.38,0.00019835,2]
[365450967,1749678671121,-490.0,0.00019835,2]
[365450968,1749678671131,-372.04,0.00019835,2]
[365450969,1749678671140,-419.85,0.00019835,2]
[365450970,1749678671149,-214.32,0.00019835,2]
[365450971,1749678671159,-490.0,0.00019835,2]
[365450972,1749678671169,-250.46,0.00019835,2]
[365450973,1749678671178,-490.0,0.00019835,2]
[365450974,1749678671187,-490.0,0.00019835,2]
[365450975,1749678671196,-688.74,0.00019835,2]
[365450976,1749678671205,-490.0,0.00019835,2]
[365450977,1749678671215,-490.0,0.00019835,2]
[365450978,1749678671224,-613.51,0.00019835,2]
[365450979,1749678671233,-490.0,0.00019835,2]
[365450980,1749678671243,-536.61,0.00019835,2]
[365450981,1749678671253,-490.0,0.00019835,2]
[365450982,1749678671262,-490.0,0.00019835,2]
[365450983,1749678671271,-490.0,0.00019835,2]
[365450984,1749678671281,-490.0,0.00019835,2]
[365450985,1749678671290,-490.0,0.00019835,2]
[365450986,1749678671299,-490.0,0.00019835,2]
[365450987,1749678671308,-490.0,0.00019835,2]
[365450988,1749678671317,-490.0,0.00019835,2]
[365450989,1749678671326,-383.12,0.00019835,2]
[365450990,1749678671336,-490.0,0.00019835,2]
[365450991,1749678671345,-755.28,0.00019835,2]
[365450992,1749678671354,-490.0,0.00019835,2]
[365450993,1749678671363,-513.74,0.00019835,2]
[365450994,1749678671373,-490.0,0.00019835,2]
[365450995,1749678671382,-586.49,0.00019835,2]
[365450996,1749678671391,-490.0,0.00019835,2]
[365450997,1749678671401,-490.0,0.00019835,2]
[365450998,1749678671410,-777.49,0.00019835,2]
[365450999,1749678671419,-490.0,0.00019835,2]
[365451000,1749678671429,-490.0,0.00019835,2]
[365451001,1749678671438,-490.0,0.00019835,2]
[365451002,1749678671447,-565.5,0.00019835,2]
[365451003,1749678671456,-490.0,0.00019835,2]
[365451004,1749678671467,-490.0,0.00019835,2]
[365451005,1749678671477,-553.19,0.00019835,2]
[365451006,1749678671487,-490.0,0.00019835,2]
[365451007,1749678671496,-490.0,0.00019835,2]
[365451008,1749678671506,-543.0,0.00019835,2]
[365451009,1749678671515,-490.0,0.00019835,2]
[365451010,1749678671524,-490.0,0.00019835,2]
[365451011,1749678671534,-490.0,0.00019835,2]
[365451012,1749678671543,-564.54,0.00019835,2]
[365451013,1749678671553,-490.0,0.00019835,2]
[365451014,1749678671563,-439.96191618,0.00019835,2]
[365451015,1749678671572,-490.0,0.00019835,2]
[365451016,1749678671582,-490.0,0.00019835,2]
[365451017,1749678671591,-490.0,0.00019835,2]
[365451018,1749678671601,-490.0,0.00019835,2]
[365451019,1749678671610,-490.0,0.00019835,2]
[365451020,1749678671620,-490.0,0.00019835,2]
[365451021,1749678671629,-490.0,0.00019835,2]
[365451022,1749678671638,-490.0,0.00019835,2]
[365451023,1749678671649,-490.0,0.00019835,2]
[365451024,1749678671658,-827.92,0.00019835,2]
[365451025,1749678671667,-490.0,0.00019835,2]
[365451026,1749678671677,-591.37225239,0.00019835,2]
[365451027,1749678671686,-674.37,0.00019835,2]
[365451028,1749678671695,-490.0,0.00019835,2]
[365451029,1749678671705,-867.52,0.00019835,2]
[365451030,1749678671714,-636.57,0.00019835,2]
[365451031,1749678671723,-490.0,0.00019835,2]
[365451032,1749678671733,-490.0,0.00019835,2]
[365451033,1749678671744,-490.0,0.00019835,2]
[365451034,1749678671754,-667.41,0.00019835,2]
[365451035,1749678671765,-499.58,0.00019835,2]
[365451036,1749678671774,-490.0,0.00019835,2]
[365451037,1749678671784,-440.0,0.00019835,2]
[365451038,1749678671793,-490.0,0.00019835,2]
[365451039,1749678671802,-420.0,0.00019835,2]
[365451040,1749678671812,-490.0,0.00019835,2]
[365451041,1749678671822,-490.0,0.00019835,2]
[365451042,1749678671831,-546.75,0.00019835,2]
[365451043,1749678671840,-490.0,0.00019835,2]
[365451044,1749678671850,-490.0,0.00019835,2]
[365451045,1749678671859,-490.0,0.00019835,2]
[365451046,1749678671868,-491.02,0.00019835,2]
[365451047,1749678671877,-490.0,0.00019835,2]
[365451048,1749678671887,-430.0,0.00019835,2]
[365451049,1749678671896,-1354.16,0.00019835,2]
[365451050,1749678671905,-151.0,0.00019835,2]
[365451051,1749678671915,-490.0,0.00019835,2]
[365451052,1749678671925,-490.0,0.00019835,2]
[365451053,1749678671934,-490.0,0.00019835,2]
[365451054,1749678671944,-490.0,0.00019835,2]
[365451055,1749678671953,-490.0,0.00019835,2]
[365451056,1749678671962,-490.0,0.00019835,2]
[365451057,1749678671971,-509.22,0.00019835,2]
[365451058,1749678671980,-490.0,0.00019835,2]
[365451059,1749678671989,-440.0,0.00019835,2]
[365451060,1749678671998,-490.0,0.00019835,2]
[365451061,1749678672007,-490.0,0.00019835,2]
[365451062,1749678672016,-151.0,0.00019835,2]
[365451063,1749678672025,-490.0,0.00019835,2]
[365451064,1749678672034,-490.0,0.00019835,2]
[365451065,1749678672043,-440.0,0.00019835,2]
[365451066,1749678672052,-490.0,0.00019835,2]
[365451067,1749678672061,-490.0,0.00019835,2]
[365451068,1749678672071,-844.35,0.00019835,2]
[365451069,1749678672079,-151.0,0.00019835,2]
[365451070,1749678672089,-544.65592102,0.00019835,2]
[365451071,1749678672098,-490.0,0.00019835,2]
[365451072,1749678672107,-490.0,0.00019835,2]
[365451073,1749678672115,-490.0,0.00019835,2]
[365451074,1749678672124,-151.0,0.00019835,2]
[365451075,1749678672133,-637.14,0.00019835,2]
[365451076,1749678672142,-490.0,0.00019835,2]
[365451077,1749678672151,-490.0,0.00019835,2]
[365451078,1749678672160,-490.0,0.00019835,2]
[365451079,1749678672169,-490.0,0.00019835,2]
[365451080,1749678672178,-151.0,0.00019835,2]
[365451081,1749678672187,-663.88,0.00019835,2]
[365451082,1749678672196,-440.0,0.00019835,2]
[365451083,1749678672205,-151.0,0.00019835,2]
[365451084,1749678672214,-418.81373181,0.00019835,2]
[365451085,1749678672228,-151.0,0.00019835,2]
[365451086,1749678672239,-490.0,0.00019835,2]
[365451087,1749678672249,-490.0,0.00019835,2]
[365451088,1749678672258,-490.0,0.00019835,2]
[365451089,1749678672267,-554.35,0.00019835,2]
[365451090,1749678672277,-490.0,0.00019835,2]
[365451091,1749678672286,-151.0,0.00019835,2]
[365451092,1749678672295,-865.59,0.00019835,2]
[365451093,1749678672303,-490.0,0.00019835,2]
[365451094,1749678672313,-151.0,0.00019835,2]
[365451095,1749678672322,-549.17,0.00019835,2]
[365451096,1749678672333,-151.0,0.00019835,2]
[365451097,1749678672345,-490.0,0.00019835,2]
[365451098,1749678672355,-490.0,0.00019835,2]
[365451099,1749678672364,-777.01,0.00019835,2]
[365451100,1749678672373,-151.0,0.00019835,2]
[365451101,1749678672382,-151.0,0.00019835,2]
[365451102,1749678672391,-490.0,0.00019835,2]
[365451103,1749678672401,-490.0,0.00019835,2]
[365451104,1749678672410,-490.0,0.00019835,2]
[365451105,1749678672419,-490.0,0.00019835,2]
[365451106,1749678672429,-490.0,0.00019835,2]
[365451107,1749678672438,-490.0,0.00019835,2]
[365451108,1749678672447,-410.0,0.00019835,2]
[365451109,1749678672457,-490.0,0.00019835,2]
[365451110,1749678672468,-490.0,0.00019835,2]
[365451111,1749678672478,-440.0,0.00019835,2]
[365451112,1749678672488,-156.747953,0.00019835,2]
[365451113,1749678672498,-490.0,0.00019835,2]
[365451114,1749678672509,-427.46,0.00019835,2]
[365451115,1749678672519,-579.43,0.00019835,2]
[365451116,1749678672528,-490.0,0.00019835,2]
[365451117,1749678672538,-524.32648724,0.00019835,2]
[365451118,1749678672547,-668.65,0.00019835,2]
[365451119,1749678672556,-151.0,0.00019835,2]
[365451120,1749678672566,-490.0,0.00019835,2]
[365451121,1749678672576,-1196.83,0.00019835,2]
[365451122,1749678672585,-151.0,0.00019835,2]
[365451123,1749678672594,-490.0,0.00019835,2]
[365451124,1749678672604,-490.0,0.00019835,2]
[365451125,1749678672613,-490.0,0.00019835,2]
[365451126,1749678672623,-490.0,0.00019835,2]
[365451127,1749678672633,-737.98,0.00019835,2]
[365451128,1749678672642,-490.0,0.00019835,2]
[365451129,1749678672652,-466.5,0.00019835,2]
[365451130,1749678672661,-692.2,0.00019835,2]
[365451131,1749678672671,-430.0,0.00019835,2]
[365451132,1749678672680,-1428.51,0.00019835,2]
[365451133,1749678672690,-490.0,0.00019835,2]
[365451134,1749678672699,-725.83,0.00019835,2]
[365451135,1749678672710,-490.0,0.00019835,2]
[365451136,1749678672720,-490.0,0.00019835,2]
[365451137,1749678672729,-1172.69,0.00019835,2]
[365451138,1749678672740,-440.0,0.00019835,2]
[365451139,1749678672751,-450.658689,0.00019835,2]
[365451140,1749678672760,-490.0,0.00019835,2]
[365451141,1749678672770,-490.0,0.00019835,2]
[365451142,1749678672780,-954.88,0.00019835,2]
[365451143,1749678672790,-490.0,0.00019835,2]
[365451144,1749678672799,-1033.7,0.00019835,2]
[365451145,1749678672809,-610.84,0.00019835,2]
[365451146,1749678672819,-450.658689,0.00019835,2]
[365451147,1749678672828,-490.0,0.00019835,2]
[365451148,1749678672838,-1106.22,0.00019835,2]
[365451149,1749678672848,-490.0,0.00019835,2]
[365451150,1749678672858,-490.0,0.00019835,2]
[365451151,1749678672868,-1395.16,0.00019835,2]
[365451152,1749678672877,-906.51,0.00019835,2]
[365451153,1749678672887,-490.0,0.00019835,2]
[365451154,1749678672896,-810.65,0.00019835,2]
[365451155,1749678672905,-734.52,0.00019835,2]
[365451156,1749678672915,-8016.81,0.00019835,2]
[365451157,1749678672924,-1444.079842,0.00019835,2]
[365451158,1749678672934,-490.0,0.00019835,2]
[365451159,1749678672943,-5669.84,0.00019835,2]
[365451160,1749678672953,-3267.52,0.00019835,2]
[365451161,1749678672963,-490.0,0.00019835,2]
[365451162,1749678672972,-490.0,0.00019835,2]
[365451163,1749678672982,-646.78,0.00019835,2]
[365451164,1749678672992,-151.0,0.00019835,2]
[365451165,1749678673002,-490.0,0.00019835,2]
[365451166,1749678673011,-490.0,0.00019835,2]
[365451167,1749678673021,-490.0,0.00019835,2]
[365451168,1749678673030,-1213.2,0.00019835,2]
[365451169,1749678673040,-440.0,0.00019835,2]
[365451170,1749678673049,-151.0,0.00019835,2]
[365451171,1749678673059,-490.0,0.00019835,2]
[365451172,1749678673068,-2370.31,0.00019835,2]
[365451173,1749678673077,-490.0,0.00019835,2]
[365451174,1749678673086,-490.0,0.00019835,2]
[365451175,1749678673096,-727.13,0.00019835,2]
[365451176,1749678673106,-490.0,0.00019835,2]
[365451177,1749678673115,-508.98,0.00019835,2]
[365451178,1749678673125,-490.0,0.00019835,2]
[365451179,1749678673135,-490.0,0.00019835,2]
[365451180,1749678673144,-1084.2,0.00019835,2]
[365451181,1749678673153,-490.0,0.00019835,2]
[365451182,1749678673162,-1064.49,0.00019835,2]
[365451183,1749678673171,-490.0,0.00019835,2]
[365451184,1749678673181,-490.0,0.00019835,2]
[365451185,1749678673190,-490.0,0.00019835,2]
[365451186,1749678673200,-1267.36,0.00019835,2]
[365451187,1749678673209,-1127.66,0.00019835,2]
[365451188,1749678673218,-887.99,0.00019835,2]
[365451189,1749678673227,-1260.78,0.00019835,2]
[365451190,1749678673237,-467.47057108,0.00019835,2]
[365451191,1749678673246,-2493.06,0.00019835,2]
[365451192,1749678673256,-490.0,0.00019835,2]
[365451193,1749678673265,-1236.85,0.00019835,2]
[365451194,1749678673274,-490.0,0.00019835,2]
[365451195,1749678673284,-440.0,0.00019835,2]
[365451196,1749678673294,-490.0,0.00019835,2]
[365451197,1749678673303,-490.0,0.00019835,2]
[365451198,1749678673313,-490.0,0.00019835,2]
[365451199,1749678673322,-490.0,0.00019835,2]
[365451200,1749678673332,-490.0,0.00019835,2]
[365451201,1749678673341,-490.0,0.00019835,2]
[365451202,1749678673352,-490.0,0.00019835,2]
[365451203,1749678673362,-2621.933712,0.00019835,2]
[365451204,1749678673372,-440.0,0.00019835,2]
[365451205,1749678673381,-490.0,0.00019835,2]
[365451206,1749678673390,-2109.3,0.00019835,2]
[365451207,1749678673400,-490.0,0.00019835,2]
[365451208,1749678673409,-490.0,0.00019835,2]
[365451209,1749678673419,-151.0,0.00019835,2]
[365451210,1749678673428,-490.0,0.00019835,2]
[365451211,1749678673439,-3918.5,0.00019835,2]
[365451212,1749678673448,-490.0,0.00019835,2]
[365451213,1749678673458,-490.0,0.00019835,2]
[365451214,1749678673470,-490.0,0.00019835,2]
[365451215,1749678673479,-490.0,0.00019835,2]
[365451216,1749678673490,-1574.82,0.00019835,2]
[365451217,1749678673500,-490.0,0.00019835,2]
[365451218,1749678673510,-1073.47,0.00019835,2]
[365451219,1749678673520,-490.0,0.00019835,2]
[365451220,1749678673530,-602.09,0.00019835,2]
[365451221,1749678673540,-490.0,0.00019835,2]
[365451222,1749678673549,-815.67,0.00019835,2]
[365451223,1749678673559,-490.0,0.00019835,2]
[365451224,1749678673569,-9371.14,0.00019835,2]
[365451225,1749678673579,-320.0,0.00019835,2]
[365451226,1749678673588,-858.66,0.00019835,2]
[365451227,1749678673597,-490.0,0.00019835,2]
[365451228,1749678673607,-842.96,0.00019835,2]
[365451229,1749678673617,-152.689741,0.00019835,2]
[365451230,1749678673627,-490.0,0.00019835,2]
[365451231,1749678673636,-900.57,0.00019835,2]
[365451232,1749678673646,-490.0,0.00019835,2]
[365451233,1749678673656,-871.33,0.00019835,2]
[365451234,1749678673666,-430.0,0.00019835,2]
[365451235,1749678673676,-320.0,0.00019835,2]
[365451236,1749678673684,-490.0,0.00019835,2]
[365451237,1749678673694,-490.0,0.00019835,2]
[365451238,1749678673703,-770.56,0.00019835,2]
[365451239,1749678673713,-490.0,0.00019835,2]
[365451240,1749678673723,-1120.3,0.00019835,2]
[365451241,1749678673733,-1607.82,0.00019835,2]
[365451242,1749678673745,-490.0,0.00019835,2]
[365451243,1749678673755,-490.0,0.00019835,2]
[365451244,1749678673765,-1253.5,0.00019835,2]
[365451245,1749678673775,-490.0,0.00019835,2]
[365451246,1749678673785,-490.0,0.00019835,2]
[365451247,1749678673795,-490.0,0.00019835,2]
[365451248,1749678673805,-490.0,0.00019835,2]
[365451249,1749678673814,-490.0,0.00019835,2]
[365451250,1749678673824,-507.81,0.00019835,2]
[365451251,1749678673834,-262.17543116,0.00019835,2]
[365451252,1749678673844,-1465.84,0.00019835,2]
[365451253,1749678673853,-490.0,0.00019835,2]
[365451254,1749678673863,-490.0,0.00019835,2]
[365451255,1749678673873,-490.0,0.00019835,2]
[365451256,1749678673884,-1087.66,0.00019835,2]
[365451257,1749678673894,-490.0,0.00019835,2]
[365451258,1749678673904,-490.0,0.00019835,2]
[365451259,1749678674087,-537.25,0.00019835,2]
[365451260,1749678674105,-151.0,0.00019835,2]
[365451261,1749678674115,-490.0,0.00019835,2]
[365451262,1749678674125,-151.0,0.00019835,2]
[365451263,1749678674134,-490.0,0.00019835,2]
[365451264,1749678674144,-490.0,0.00019835,2]
[365451265,1749678674154,-490.0,0.00019835,2]
[365451266,1749678674163,-151.0,0.00019835,2]
[365451267,1749678674173,-490.0,0.00019835,2]
[365451268,1749678674183,-839.46,0.00019835,2]
[365451269,1749678674192,-490.0,0.00019835,2]
[365451270,1749678674202,-490.0,0.00019835,2]
[365451271,1749678674212,-490.0,0.00019835,2]
[365451272,1749678674222,-490.0,0.00019835,2]
[365451273,1749678674234,-845.5,0.00019835,2]
[365451274,1749678674246,-320.82,0.00019835,2]
[365451275,1749678674256,-399.93156456,0.00019835,2]
[365451276,1749678674266,-1908.27,0.00019835,2]
[365451277,1749678674275,-490.0,0.00019835,2]
[365451278,1749678674286,-15939.03,0.00019835,2]
[365451279,1749678674296,-450.0,0.00019835,2]
[365451280,1749678674306,-4533.32,0.00019835,2]
[365451281,1749678674316,-490.0,0.00019835,2]
[365451282,1749678674326,-490.0,0.00019835,2]
[365451283,1749678674336,-1681.05,0.00019835,2]
[365451284,1749678674345,-490.0,0.00019835,2]
[365451285,1749678674355,-490.0,0.00019835,2]
[365451286,1749678674365,-490.0,0.00019835,2]
[365451287,1749678674375,-490.0,0.00019835,2]
[365451288,1749678674385,-490.0,0.00019835,2]
[365451289,1749678674395,-2248.91,0.00019835,2]
[365451290,1749678674405,-151.0,0.00019835,2]
[365451291,1749678674415,-490.0,0.00019835,2]
[365451292,1749678674425,-490.0,0.00019835,2]
[365451293,1749678674435,-1688.58,0.00019835,2]
[365451294,1749678674445,-821.62,0.00019835,2]
[365451295,1749678674453,-490.0,0.00019835,2]
[365451296,1749678674463,-151.0,0.00019835,2]
[365451297,1749678674476,-490.0,0.00019835,2]
[365451298,1749678674486,-490.0,0.00019835,2]
[365451299,1749678674497,-490.0,0.00019835,2]
[365451300,1749678674507,-3276.99,0.00019835,2]
[365451301,1749678674517,-490.0,0.00019835,2]
[365451302,1749678674527,-741.03,0.00019835,2]
[365451303,1749678674536,-2634.95,0.00019835,2]
[365451304,1749678674548,-1544.13,0.00019835,2]
[365451305,1749678674559,-490.0,0.00019835,2]
[365451306,1749678674569,-490.0,0.00019835,2]
[365451307,1749678674579,-736.5,0.00019835,2]
[365451308,1749678674589,-151.301211,0.00019835,2]
[365451309,1749678674599,-490.0,0.00019835,2]
[365451310,1749678674609,-490.0,0.00019835,2]
[365451311,1749678674619,-490.0,0.00019835,2]
[365451312,1749678674629,-509.57623117,0.00019835,2]
[365451313,1749678674639,-1207.69,0.00019835,2]
[365451314,1749678674649,-151.0,0.00019835,2]
[365451315,1749678674659,-1129.66,0.00019835,2]
[365451316,1749678674668,-490.0,0.00019835,2]
[365451317,1749678674678,-490.0,0.00019835,2]
[365451318,1749678674687,-490.0,0.00019835,2]
[365451319,1749678674697,-490.0,0.00019835,2]
[365451320,1749678674706,-1000.0,0.00019835,2]
[365451321,1749678674716,-490.0,0.00019835,2]
[365451322,1749678674726,-490.0,0.00019835,2]
[365451323,1749678674736,-490.0,0.00019835,2]
[365451324,1749678674747,-641.07,0.00019835,2]
[365451325,1749678674758,-490.0,0.00019835,2]
[365451326,1749678674768,-3317.38,0.00019835,2]
[365451327,1749678674778,-490.0,0.00019835,2]
[365451328,1749678674788,-490.0,0.00019835,2]
[365451329,1749678674798,-761.57,0.00019835,2]
[365451330,1749678674808,-490.0,0.00019835,2]
[365451331,1749678674817,-1688.49,0.00019835,2]
[365451332,1749678674827,-1894.66,0.00019835,2]
[365451333,1749678674838,-680.84,0.00019835,2]
[365451334,1749678674847,-151.0,0.00019835,2]
[365451335,1749678674857,-1120.96,0.00019835,2]
[365451336,1749678674867,-1869.14,0.00019835,2]
[365451337,1749678674877,-490.0,0.00019835,2]
[365451338,1749678674886,-490.0,0.00019835,2]
[365451339,1749678674896,-490.0,0.00019835,2]
[365451340,1749678674906,-869.87,0.00019835,2]
[365451341,1749678674916,-490.0,0.00019835,2]
[365451342,1749678674925,-1664.43,0.00019835,2]
[365451343,1749678674935,-490.0,0.00019835,2]
[365451344,1749678674944,-3867.72,0.00019835,2]
[365451345,1749678674954,-490.0,0.00019835,2]
[365451346,1749678674963,-490.0,0.00019835,2]
[365451347,1749678674973,-490.0,0.00019835,2]
[365451348,1749678674983,-490.0,0.00019835,2]
[365451349,1749678674992,-490.0,0.00019835,2]
[365451350,1749678675002,-3076.62,0.00019835,2]
[365451351,1749678675012,-490.0,0.00019835,2]
[365451352,1749678675022,-490.0,0.00019835,2]
[365451353,1749678675031,-2330.84,0.00019835,2]
[365451354,1749678675041,-151.0,0.00019835,2]
[365451355,1749678675050,-490.0,0.00019835,2]
[365451356,1749678675059,-490.0,0.00019835,2]
[365451357,1749678675068,-490.0,0.00019835,2]
[365451358,1749678675078,-490.0,0.00019835,2]
[365451359,1749678675088,-3718.72,0.00019835,2]
[365451360,1749678675098,-490.0,0.00019835,2]
[365451361,1749678675108,-490.0,0.00019835,2]
[365451362,1749678675118,-490.0,0.00019835,2]
[365451363,1749678675127,-440.0,0.00019835,2]
[365451364,1749678675137,-490.0,0.00019835,2]
[365451365,1749678675147,-490.0,0.00019835,2]
[365451366,1749678675157,-490.0,0.00019835,2]
[365451367,1749678675166,-556.11,0.00019835,2]
[365451368,1749678675176,-735.23,0.00019835,2]
[365451369,1749678675186,-490.0,0.00019835,2]
[365451370,1749678675195,-986.92,0.00019835,2]
[365451371,1749678675205,-303.272567,0.00019835,2]
[365451372,1749678675215,-704.54,0.00019835,2]
[365451373,1749678675224,-7050.98,0.00019835,2]
[365451374,1749678675234,-4328.28,0.00019835,2]
[365451375,1749678675245,-490.0,0.00019835,2]
[365451376,1749678675255,-1358.4,0.00019835,2]
[365451377,1749678675264,-490.0,0.00019835,2]
[365451378,1749678675274,-303.272567,0.00019835,2]
[365451379,1749678675284,-490.0,0.00019835,2]
[365451380,1749678675294,-561.87,0.00019835,2]
[365451381,1749678675304,-1622.083012,0.00019835,2]
[365451382,1749678675314,-490.0,0.00019835,2]
[365451383,1749678675324,-490.0,0.00019835,2]
[365451384,1749678675333,-490.0,0.00019835,2]
[365451385,1749678675343,-360.0,0.00019835,2]
[365451386,1749678675352,-3555.95,0.00019835,2]
[365451387,1749678675362,-490.0,0.00019835,2]
[365451388,1749678675371,-151.0,0.00019835,2]
[365451389,1749678675380,-490.0,0.00019835,2]
[365451390,1749678675390,-742.57,0.00019835,2]
[365451391,1749678675399,-450.0,0.00019835,2]
[365451392,1749678675410,-490.0,0.00019835,2]
[365451393,1749678675421,-151.0,0.00019835,2]
[365451394,1749678675431,-2901.27,0.00019835,2]
[365451395,1749678675440,-210.111846,0.00019835,2]
[365451396,1749678675450,-490.0,0.00019835,2]
[365451397,1749678675460,-588.08,0.00019835,2]
[365451398,1749678675473,-490.0,0.00019835,2]
[365451399,1749678675483,-1000.0,0.00019835,2]
[365451400,1749678675494,-5800.0,0.00019866,2]
[365451401,1749678675503,-150.0,0.00019868,2]
[365451402,1749678675514,-5800.0,0.00019875,2]
[365451403,1749678675524,-151.0,0.00019875,2]
[365451404,1749678675533,-226.239363,0.00019875,2]
[365451405,1749678675544,-151.115717,0.00019875,2]
[365451406,1749678675554,-151.0,0.00019875,2]
[365451407,1749678675564,-151.0,0.00019875,2]
[365451408,1749678675574,-151.0,0.00019875,2]
[365451409,1749678675584,-194.093952,0.00019875,2]
[365451410,1749678675594,-151.0,0.00019875,2]
[365451411,1749678675604,-151.0,0.00019875,2]
[365451412,1749678675614,-151.0,0.00019875,2]
[365451413,1749678675624,-151.0,0.00019875,2]
[365451414,1749678675635,-197.089735,0.00019875,2]
[365451415,1749678675644,-197.089735,0.00019875,2]
[365451416,1749678675655,-465.76299,0.00019875,2]
[365451417,1749678675665,-465.76299,0.00019875,2]
[365451418,1749678675675,-267.343823,0.00019875,2]
[365451419,1749678675685,-267.343823,0.00019875,2]
[365451420,1749678675695,-150.0,0.00019883,2]
[365451421,1749678675704,-5800.0,0.00019883,2]
[365451422,1749678675714,-156.587,0.00019891,2]
[365451423,1749678675724,-215.0738,0.00019891,2]
[365451424,1749678675734,-5800.0,0.00019892,2]
[365451425,1749678675744,-150.0,0.00019899,2]
[365451426,1749678675754,-5800.0,0.000199,2]
[365451427,1749678675764,-185.12562828,0.000199,2]
[365451428,1749678675774,-768.0,0.000199,2]
[365451429,1749678675784,-237.0,0.000199,2]
[365451430,1749678675794,-1100.0,0.000199,7]
[365451431,1749678675804,-3058.86184255,0.000199,2]
[365451432,1749678675813,-221.93189134,0.000199,2]
[365451433,1749678675823,-376.0,0.000199,2]
[365451434,1749678675832,-150.0,0.0001991,2]
[365451435,1749678675842,-1000.0,0.00019912,2]
[365451436,1749678675852,-1000.0,0.00019921,2]
[365451437,1749678675861,-686.79562847,0.00019921,2]
[365451438,1749678675871,-1000.0,0.00019921,2]
[365451439,1749678675881,-1000.0,0.00019921,2]
[365451440,1749678675891,-1000.0,0.00019939,2]
[365451441,1749678675900,-150.0,0.0001994,2]
[365451442,1749678675909,-150.0,0.00019951,2]
[365451443,1749678675919,-518.30448933,0.00019973,2]